bitfinex/quotes_BTCUSD_20251120
["timestamp","ask_amount","ask_price","bid_price","bid_amount"]
[1763643948122,0.02026033,91932.0,91931.0,0.02175544]
[1763643948403,0.00368,91933.0,91928.0,0.03224448]
[1763643948571,0.00368,91933.0,91928.0,0.02136641]
[1763643948768,0.02838,91933.0,91928.0,0.02136641]
[1763643949388,0.02838,91933.0,91927.0,0.01087819]
[1763643949594,0.02938,91933.0,91928.0,0.02175615]
[1763643949788,0.02838,91933.0,91928.0,0.23931687]
[1763643949990,0.02838,91933.0,91930.0,0.01087784]
[1763643950141,0.02938,91933.0,91931.0,0.21755252]
[1763643950348,0.01551,91932.0,91931.0,0.21755252]
[1763643950576,0.001,91932.0,91931.0,0.21755252]
[1763643950977,0.00368,91932.0,91931.0,0.21755252]
[1763643951230,0.01919,91932.0,91930.0,0.22843195]
[1763643951429,0.00368,91932.0,91931.0,0.23930991]
[1763643951592,0.00368,91932.0,91931.0,0.21755447]
[1763643952166,0.00468,91932.0,91931.0,0.21755447]
[1763643952679,0.00468,91932.0,91931.0,0.26460229]
[1763643952919,0.00568,91932.0,91931.0,0.26460229]
[1763643953327,0.006666,91932.0,91931.0,0.26460229]
[1763643953525,0.006666,91932.0,91931.0,0.21755447]
[1763643954142,0.004666,91932.0,91931.0,0.21755447]
[1763643956508,0.000986,91932.0,91931.0,0.21755447]
[1763643959440,0.000986,91932.0,91931.0,0.21755447]
[1763643960869,0.016496,91932.0,91931.0,0.21755447]
[1763643961077,0.016496,91932.0,91929.0,0.22843699]
[1763643961282,0.0247,91932.0,91930.0,0.02175568]
[1763643961626,0.0247,91932.0,91916.0,1.08467101]
[1763643961627,0.02792,91927.0,91918.0,0.01087926]
[1763643961832,0.02792,91917.0,91916.0,1.31313952]
[1763643962028,0.02792,91917.0,91916.0,1.0955505]
[1763643962243,0.01241,91917.0,91916.0,1.31314047]
[1763643962602,0.00368,91926.0,91923.0,0.01087867]
[1763643962804,0.00368,91926.0,91916.0,1.0955505]
[1763643962805,0.02273,91925.0,91916.0,1.08467101]
[1763643963005,0.01638,91921.0,91917.0,0.01087938]
[1763643963204,0.01638,91921.0,91918.0,0.22846235]
[1763643963436,0.00368,91926.0,91921.0,0.21757635]
[1763643963644,0.00368,91926.0,91923.0,0.01087867]
[1763643964031,0.01638,91924.0,91923.0,0.01087867]
[1763643964238,0.01638,91924.0,91922.0,0.22845336]
[1763643964884,0.00368,91926.0,91925.0,0.21756867]
[1763643965248,0.00368,91926.0,91925.0,0.31003836]
[1763643965454,0.00368,91926.0,91923.0,0.01087867]
[1763643965455,0.01583,91926.0,91923.0,0.01087867]
[1763643965664,0.02273,91925.0,91924.0,0.0217571]
[1763643965865,0.01638,91916.0,91914.0,0.21759334]
[1763643966086,0.01638,91916.0,91915.0,0.21759234]
[1763643966672,0.02273,91925.0,91919.0,0.01087914]
[1763643966982,0.02273,91925.0,91923.0,0.2175734]
[1763643967183,0.01583,91926.0,91924.0,0.23769897]
[1763643967520,0.01583,91926.0,91925.0,0.21756867]
[1763643967733,0.01638,91925.0,91923.0,0.22845207]
[1763643967849,0.01638,91925.0,91924.0,0.0217571]
[1763643968268,0.03911,91925.0,91917.0,0.21758759]
[1763643968470,0.01638,91922.0,91919.0,0.01087914]
[1763643968682,0.01638,91922.0,91921.0,0.21757813]
[1763643968887,0.01583,91926.0,91922.0,0.01087878]
[1763643969112,0.01583,91926.0,91893.0,0.04356515]
[1763643969113,0.01638,91922.0,91889.0,0.05801669]
[1763643969314,0.01638,91920.0,91917.0,0.22846671]
[1763643969522,0.01638,91918.0,91915.0,0.01087961]
[1763643969765,0.01638,91917.0,91913.0,0.22847517]
[1763643969972,0.01638,91917.0,91916.0,0.21758997]
[1763643971013,0.01583,91926.0,91925.0,0.21756867]
[1763643971284,0.01583,91926.0,91920.0,0.01087902]
[1763643971448,0.01638,91925.0,91921.0,0.0108789]
[1763643971789,0.01583,91926.0,91922.0,0.02175757]
[1763643971991,0.02273,91925.0,91922.0,0.02175757]
[1763643972189,0.01638,91923.0,91922.0,0.03263635]
[1763643972397,0.01638,91923.0,91922.0,0.01087878]
[1763643972623,0.03911,91923.0,91922.0,0.01087878]
[1763643972758,0.03911,91923.0,91921.0,0.02175781]
[1763643972965,0.02273,91923.0,91921.0,0.02175781]
[1763643973159,0.01638,91922.0,91921.0,0.02175781]
[1763643973364,0.01638,91922.0,91912.0,0.2175988]
[1763643973365,0.01638,91922.0,91914.0,1.08467101]
[1763643973581,0.02853,91915.0,91914.0,1.08467101]
[1763643974179,0.02853,91915.0,91908.0,0.01088044]
[1763643974180,0.05126,91915.0,91908.0,0.01088044]
[1763643974379,0.05126,91915.0,91904.0,1.08467101]
[1763643974380,0.01638,91909.0,91906.0,0.22849295]
[1763643974587,0.02641,91914.0,91905.0,0.22849617]
[1763643974588,0.01638,91906.0,91905.0,0.22849617]
[1763643974789,0.01638,91906.0,91899.0,0.22851135]
[1763643974987,0.01215,91899.0,91896.0,0.22851751]
[1763643975278,0.01215,91899.0,91896.0,5.039e-05]
[1763643975497,0.01215,91899.0,91896.0,0.01093225]
[1763643975674,0.01215,91899.0,91898.0,0.21763259]
[1763643976948,0.01215,91899.0,91896.0,0.22856932]
[1763643976949,0.02853,91899.0,91896.0,0.22856932]
[1763643977140,0.02853,91899.0,91898.0,0.21763259]
[1763643977890,0.00368,91901.0,91900.0,0.21762785]
[1763643978094,0.01215,91926.0,91917.0,0.01087938]
[1763643978095,0.02345508,91923.0,91917.0,0.01087938]
[1763643978290,0.02404201,91922.0,91919.0,0.01087914]
[1763643978531,0.02036201,91921.0,91920.0,0.21757967]
[1763643978733,0.04309201,91921.0,91920.0,0.21757967]
[1763643979064,0.05947201,91921.0,91919.0,0.22846149]
[1763643979209,0.03674201,91920.0,91919.0,0.22846149]
[1763643979767,0.03674201,91920.0,91905.0,1.30228506]
[1763643980052,0.01638,91918.0,91915.0,0.01087961]
[1763643980199,0.01638,91918.0,91917.0,0.2175876]
[1763643980620,0.001,91920.0,91917.0,0.22846698]
[1763643980825,0.01215,91924.0,91923.0,0.2175734]
[1763643981034,0.03618873,91924.0,91923.0,0.2175734]
[1763643981418,0.05256873,91924.0,91923.0,0.2175734]
[1763643981849,0.05256873,91924.0,91921.0,0.22845699]
[1763643982019,0.01638,91922.0,91921.0,0.0108789]
[1763643982226,0.01638,91922.0,91915.0,0.22847123]
[1763643982489,0.01638,91922.0,91919.0,0.01087914]
[1763643982829,0.01738,91920.0,91919.0,0.25021999]
[1763643983067,0.01738,91920.0,91916.0,0.01087949]
[1763643983284,0.01638,91920.0,91917.0,0.02175876]
[1763643983452,0.00058009,91918.0,91917.0,0.02175876]
[1763643984074,0.00058009,91918.0,91917.0,0.23934636]
[1763643984275,0.00058009,91918.0,91917.0,0.2175876]
[1763643985494,0.00058009,91918.0,91912.0,0.21759856]
[1763643985495,0.00058009,91918.0,91913.0,0.21759577]
[1763643985698,0.01638,91918.0,91915.0,0.01087961]
[1763643985865,0.01638,91918.0,91916.0,0.02175899]
[1763643986424,0.01638,91918.0,91916.0,0.23934869]
[1763643986601,0.01638,91918.0,91915.0,0.01087961]
[1763643986806,0.01638,91918.0,91910.0,0.51224656]
[1763643986807,0.02273,91918.0,91916.0,0.02175899]
[1763643987024,0.01583,91924.0,91915.0,0.01087961]
[1763643987223,0.01583,91924.0,91916.0,0.02119559]
[1763643987224,0.02037143,91923.0,91916.0,0.02119559]
[1763643987565,0.02037143,91922.0,91916.0,0.02119559]
[1763643987766,0.01638,91917.0,91912.0,0.01087997]
[1763643988044,0.01638,91917.0,91910.0,0.0108802]
[1763643988271,0.03911,91917.0,91910.0,0.0108802]
[1763643988473,0.01683,91924.0,91921.0,0.0108789]
[1763643988631,0.01583,91924.0,91923.0,0.2175734]
[1763643988990,0.05280276,91924.0,91923.0,0.2175734]
[1763643989392,0.07655276,91924.0,91919.0,0.01087914]
[1763643989746,0.06072276,91923.0,91922.0,0.21757577]
[1763643990520,0.06072276,91923.0,91910.0,0.21760407]
[1763643990726,0.01659,91921.0,91912.0,0.01087997]
[1763643990928,0.01659,91911.0,91900.0,0.52312795]
[1763643991134,0.02866,91906.0,91895.0,0.01088198]
[1763643991371,0.01207,91897.0,91896.0,0.21768694]
[1763643991531,0.01207,91897.0,91896.0,5.039e-05]
[1763643991727,0.01207,91897.0,91896.0,0.21768771]
[1763643992385,0.01207,91897.0,91896.0,5.039e-05]
[1763643992581,0.05053,91897.0,91896.0,5.039e-05]
[1763643992896,0.0709269,91897.0,91896.0,5.039e-05]
[1763643993866,0.28856186,91897.0,91896.0,5.039e-05]
[1763643994073,0.0709269,91897.0,91896.0,5.039e-05]
[1763643994909,0.0719269,91897.0,91896.0,5.039e-05]
[1763643995558,0.0334669,91897.0,91896.0,5.039e-05]
[1763643995969,0.0719269,91897.0,91896.0,5.039e-05]
[1763643996513,0.0729269,91897.0,91896.0,5.039e-05]
[1763643996712,0.0260769,91897.0,91896.0,5.039e-05]
[1763643996912,0.02136546,91897.0,91896.0,0.02181412]
[1763643997222,0.02604546,91897.0,91896.0,0.02181412]
[1763643997624,0.02504546,91897.0,91896.0,0.02181412]
[1763643997833,0.00468,91897.0,91896.0,0.02181412]
[1763643998457,0.00368,91897.0,91896.0,0.02181412]
[1763643999678,0.00368,91897.0,91896.0,5.039e-05]
[1763644000353,0.00368,91897.0,91896.0,0.02181412]
[1763644001818,0.00368,91897.0,91896.0,0.23945144]
[1763644002015,0.00368,91897.0,91896.0,0.32685265]
[1763644002238,0.00023207,91906.0,91905.0,0.21761601]
[1763644002574,0.00391207,91906.0,91903.0,0.01088103]
[1763644002916,0.00391207,91906.0,91905.0,0.21761601]
[1763644003454,0.00491207,91906.0,91905.0,0.21761601]
[1763644003905,0.04337207,91906.0,91806.0,0.0548814]
[1763644004104,0.01164,91901.0,91900.0,0.21762785]
[1763644005093,0.00491207,91906.0,91903.0,0.22850001]
[1763644005297,0.00491207,91906.0,91905.0,0.21761601]
[1763644006211,0.00391207,91906.0,91905.0,0.21761601]
[1763644006781,0.00391207,91906.0,91901.0,1.08467101]
[1763644006782,0.01975207,91906.0,91901.0,1.08467101]
[1763644006950,0.01975207,91906.0,91903.0,0.01088103]
[1763644007145,0.01975207,91906.0,91901.0,1.31317744]
[1763644007146,0.02075207,91906.0,91901.0,1.31317744]
[1763644007351,0.01975207,91906.0,91901.0,1.30229619]
[1763644007573,0.02075207,91906.0,91901.0,1.30229619]
[1763644007785,0.02748,91902.0,91896.0,0.01093225]
[1763644007989,0.01584,91901.0,91898.0,0.22851421]
[1763644008235,0.01164,91902.0,91901.0,0.21762548]
[1763644009523,0.00391207,91906.0,91905.0,0.21761601]
[1763644012725,0.00391207,91906.0,91902.0,0.01088115]
[1763644012931,0.01164,91901.0,91899.0,0.01088151]
[1763644013129,0.00391207,91906.0,91904.0,0.21761782]
[1763644013332,0.00391207,91906.0,91905.0,0.0217616]
[1763644013778,0.00391207,91906.0,91905.0,0.23448772]
[1763644014009,0.00023207,91906.0,91905.0,0.23448772]
[1763644014174,0.00391207,91906.0,91905.0,0.23448772]
[1763644014801,0.00391207,91906.0,91905.0,0.21761601]
[1763644016553,0.01975207,91906.0,91904.0,0.21761782]
[1763644016765,0.01975207,91906.0,91905.0,0.21761601]
[1763644017161,0.00391207,91906.0,91905.0,0.21761601]
[1763644018622,0.00391207,91906.0,91904.0,0.21761782]
[1763644018829,0.01584,91905.0,91903.0,0.01088103]
[1763644019044,0.00391207,91906.0,91903.0,0.22850097]
[1763644019195,0.01584,91904.0,91902.0,1.08467101]
[1763644019402,0.01584,91904.0,91902.0,0.21762157]
[1763644019714,0.00391207,91906.0,91904.0,0.21761778]
[1763644019909,0.00391207,91906.0,91905.0,0.21761601]
[1763644020782,0.00391207,91906.0,91903.0,0.22850141]
[1763644020977,0.00391207,91906.0,91905.0,0.21761601]
[1763644021183,0.01584,91904.0,91902.0,0.21762255]
[1763644021387,0.01584,91902.0,91897.0,0.2176348]
[1763644021569,0.02262,91905.0,91899.0,0.22851054]
[1763644021761,0.01584,91900.0,91899.0,0.22851054]
[1763644022166,0.00391207,91906.0,91904.0,0.21761838]
[1763644022366,0.00391207,91906.0,91905.0,0.23937761]
[1763644022593,0.00391207,91906.0,91905.0,0.21761601]
[1763644025571,0.00023207,91906.0,91905.0,0.21761601]
[1763644027782,0.00023207,91906.0,91905.0,0.26118116]
[1763644029116,0.00023207,91906.0,91905.0,0.26218116]
[1763644030186,0.00023207,91906.0,91905.0,0.26318116]
[1763644032763,0.00023207,91906.0,91905.0,0.32119785]
[1763644033438,0.00023207,91906.0,91905.0,0.26318116]
[1763644037684,0.00023207,91906.0,91905.0,0.36421996]
[1763644038269,0.00023207,91906.0,91905.0,0.26318116]
[1763644042250,0.00023207,91906.0,91905.0,0.6279374]
[1763644045810,0.00023207,91906.0,91905.0,0.66061363]
[1763644049451,0.00023207,91906.0,91905.0,0.61885739]
[1763644050034,0.00023207,91906.0,91905.0,0.58618116]
[1763644050439,0.00023207,91906.0,91905.0,0.54261601]
[1763644051047,0.00023207,91906.0,91905.0,0.002]
[1763644051048,0.04138207,91906.0,91905.0,0.002]
[1763644052019,0.04138207,91906.0,91899.0,0.02176302]
[1763644052242,0.01682207,91906.0,91902.0,0.01088115]
[1763644052409,0.01188,91905.0,91897.0,0.01088174]
[1763644052613,0.01188,91905.0,91899.0,0.02176302]
[1763644052963,0.01188,91905.0,91901.0,0.01088127]
[1763644053182,0.01188,91905.0,91903.0,0.21761978]
[1763644053377,0.00023207,91906.0,91905.0,0.21761601]
[1763644053958,0.00023207,91906.0,91896.0,1.0847214]
[1763644053959,0.04033207,91906.0,91896.0,1.0847214]
[1763644054135,0.01625,91897.0,91896.0,1.0847214]
[1763644054688,0.0401,91897.0,91896.0,1.0847214]
[1763644054967,0.01625,91897.0,91896.0,1.0847214]
[1763644057122,0.0401,91897.0,91896.0,1.0847214]
[1763644058187,0.02385,91903.0,91900.0,0.01088139]
[1763644058351,0.02385,91903.0,91897.0,0.01088174]
[1763644058352,0.02385,91903.0,91897.0,0.2285167]
[1763644058600,0.02385,91903.0,91898.0,0.22851331]
[1763644058801,0.01625,91898.0,91896.0,1.0847214]
[1763644059007,0.02385,91903.0,91896.0,1.0847214]
[1763644059008,0.01625,91897.0,91896.0,1.0847214]
[1763644059621,0.0401,91897.0,91896.0,1.0847214]
[1763644059844,0.0401,91897.0,91896.0,5.039e-05]
[1763644063034,0.01188,91898.0,91896.0,0.21768771]
[1763644063445,0.01188,91898.0,91897.0,0.21763496]
[1763644063583,0.01188,91898.0,91896.0,5.039e-05]
[1763644063785,0.01625,91897.0,91896.0,5.039e-05]
[1763644064326,0.0401,91897.0,91896.0,5.039e-05]
[1763644065268,0.01625,91897.0,91896.0,0.21768771]
[1763644065673,0.01188,91898.0,91897.0,0.21763496]
[1763644065875,0.00368,91897.0,91896.0,0.21768771]
[1763644066596,0.01188,91907.0,91903.0,0.01088103]
[1763644066725,0.00368,91901.0,91900.0,0.22850704]
[1763644066925,0.01993,91901.0,91896.0,5.039e-05]
[1763644067159,0.01625,91897.0,91896.0,0.02128333]
[1763644067555,0.01625,91897.0,91896.0,0.23892021]
[1763644067756,0.01625,91897.0,91896.0,0.21768727]
[1763644067943,0.0401,91897.0,91896.0,0.21768727]
[1763644068883,0.01625,91897.0,91896.0,0.21768727]
[1763644069315,0.01625,91897.0,91896.0,5.039e-05]
[1763644069519,0.0401,91897.0,91896.0,5.039e-05]
[1763644074641,0.30983745,91897.0,91896.0,5.039e-05]
[1763644075302,0.09220249,91897.0,91896.0,5.039e-05]
[1763644075508,0.11459459,91897.0,91896.0,5.039e-05]
[1763644075927,0.0624921,91897.0,91896.0,5.039e-05]
[1763644076128,0.04378,91897.0,91896.0,5.039e-05]
[1763644076346,0.02093,91897.0,91896.0,5.039e-05]
[1763644076553,0.01825,91897.0,91896.0,5.039e-05]
[1763644076711,0.00568,91897.0,91896.0,5.039e-05]
[1763644076917,0.00468,91897.0,91896.0,5.039e-05]
[1763644077079,0.04478,91897.0,91896.0,5.039e-05]
[1763644077280,0.04378,91897.0,91896.0,5.039e-05]
[1763644078580,0.01993,91897.0,91896.0,5.039e-05]
[1763644078780,0.01993,91897.0,91896.0,0.21768771]
[1763644078987,0.01993,91897.0,91896.0,5.039e-05]
[1763644079190,0.04378,91897.0,91896.0,5.039e-05]
[1763644080038,0.01993,91897.0,91896.0,0.21768771]
[1763644080239,0.00368,91897.0,91896.0,5.039e-05]
[1763644080443,0.0240817,91897.0,91896.0,5.039e-05]
[1763644080649,0.0403317,91897.0,91896.0,5.039e-05]
[1763644081360,0.0641817,91897.0,91896.0,5.039e-05]
[1763644082937,0.0403317,91897.0,91896.0,5.039e-05]
[1763644083292,0.0631517,91897.0,91896.0,5.039e-05]
[1763644086020,0.33288915,91897.0,91896.0,5.039e-05]
[1763644086422,0.11525419,91897.0,91896.0,5.039e-05]
[1763644086623,0.11625419,91897.0,91896.0,5.039e-05]
[1763644086826,0.11725419,91897.0,91896.0,5.039e-05]
[1763644087059,0.14440847,91897.0,91896.0,5.039e-05]
[1763644089712,0.14442395,91897.0,91896.0,5.039e-05]
[1763644090852,0.11726967,91897.0,91896.0,5.039e-05]
[1763644091655,0.11626967,91897.0,91896.0,5.039e-05]
[1763644091859,0.11526967,91897.0,91896.0,5.039e-05]
[1763644092131,0.11726967,91897.0,91896.0,5.039e-05]
[1763644092480,0.11526967,91897.0,91896.0,5.039e-05]
[1763644092712,0.11626967,91897.0,91896.0,5.039e-05]
[1763644092917,0.11726967,91897.0,91896.0,5.039e-05]
[1763644093124,0.09652876,91897.0,91896.0,5.039e-05]
[1763644094896,0.11694287,91897.0,91896.0,5.039e-05]
[1763644095123,0.09652876,91897.0,91896.0,5.039e-05]
[1763644096483,0.04442627,91897.0,91896.0,5.039e-05]
[1763644096976,0.30962902,91897.0,91896.0,5.039e-05]
[1763644097269,0.06483978,91897.0,91896.0,5.039e-05]
[1763644097597,0.09199406,91897.0,91896.0,5.039e-05]
[1763644097821,0.36173151,91897.0,91896.0,5.039e-05]
[1763644098023,0.33457723,91897.0,91896.0,5.039e-05]
[1763644098437,0.11694227,91897.0,91896.0,5.039e-05]
[1763644098642,0.14409655,91897.0,91896.0,5.039e-05]
[1763644099064,0.37194105,91897.0,91896.0,5.039e-05]
[1763644099275,0.12715181,91897.0,91896.0,5.039e-05]
[1763644099474,0.17783264,91897.0,91896.0,5.039e-05]
[1763644100306,0.3954676,91897.0,91896.0,5.039e-05]
[1763644100511,0.11694227,91897.0,91896.0,5.039e-05]
[1763644100720,0.14409655,91897.0,91896.0,5.039e-05]
[1763644102125,0.11694227,91897.0,91896.0,5.039e-05]
[1763644102286,0.14409655,91897.0,91896.0,5.039e-05]
[1763644102667,0.14393194,91897.0,91896.0,5.039e-05]
[1763644105495,0.3615669,91897.0,91896.0,5.039e-05]
[1763644105716,0.12698949,91897.0,91896.0,5.039e-05]
[1763644105932,0.39531869,91897.0,91896.0,5.039e-05]
[1763644106146,0.33442277,91897.0,91896.0,5.039e-05]
[1763644106363,0.11678781,91897.0,91896.0,5.039e-05]
[1763644106578,0.14394209,91897.0,91896.0,5.039e-05]
[1763644107016,0.15415379,91897.0,91896.0,5.039e-05]
[1763644107229,0.39531825,91897.0,91896.0,5.039e-05]
[1763644107443,0.3681641,91897.0,91896.0,5.039e-05]
[1763644107658,0.6911641,91897.0,91896.0,5.039e-05]
[1763644108118,0.6911641,91897.0,91860.0,0.45111546]
[1763644108119,0.06298767,91868.0,91848.0,0.05865203]
[1763644108338,0.02183,91852.0,91851.0,0.00042127]
[1763644108560,0.02551,91852.0,91851.0,0.00042127]
[1763644108777,0.04956,91852.0,91851.0,0.00042127]
[1763644110203,0.02551,91852.0,91851.0,0.00042127]
[1763644110547,0.02551,91852.0,91851.0,0.02219566]
[1763644112404,0.02551,91852.0,91851.0,0.23993961]
[1763644112611,0.02551,91852.0,91851.0,0.21816522]
[1763644113999,0.04957,91852.0,91851.0,0.00042127]
[1763644116951,0.05157,91852.0,91851.0,0.00042127]
[1763644119216,0.05157,91852.0,91851.0,0.21816522]
[1763644119217,0.00864,91852.0,91851.0,0.21816522]
[1763644119440,0.00568,91852.0,91851.0,0.21316522]
[1763644119606,0.002,91852.0,91851.0,0.31790049]
[1763644119809,0.00568,91852.0,91851.0,0.2961261]
[1763644120184,0.00468,91852.0,91851.0,0.21774395]
[1763644120382,0.00368,91852.0,91851.0,0.21774395]
[1763644121726,0.01152,91864.0,91863.0,0.21771551]
[1763644122028,0.01152,91872.0,91864.0,0.01088565]
[1763644122227,0.01135,91869.0,91864.0,0.01088565]
[1763644122424,0.01135,91869.0,91865.0,0.01088553]
[1763644122625,0.03541,91869.0,91866.0,0.01088542]
[1763644122865,0.03541,91869.0,91865.0,0.01088553]
[1763644123068,0.01501,91866.0,91855.0,0.01088672]
[1763644123300,0.002,91864.0,91860.0,0.01088613]
[1763644123498,0.001,91864.0,91863.0,0.21771551]
[1763644123940,0.01601,91864.0,91863.0,0.21771551]
[1763644124118,0.01501,91864.0,91863.0,0.21771551]
[1763644124355,0.03907,91864.0,91863.0,0.21771551]
[1763644124571,0.04007,91864.0,91863.0,0.21771551]
[1763644124796,0.03907,91864.0,91863.0,0.21771551]
[1763644125247,0.03907,91864.0,91853.0,0.01088696]
[1763644125465,0.01135,91858.0,91854.0,0.22862173]
[1763644125632,0.01501,91854.0,91852.0,0.2177413]
[1763644125862,0.01501,91853.0,91851.0,0.01088719]
[1763644125994,0.01501,91853.0,91851.0,0.22863021]
[1763644126198,0.01501,91853.0,91850.0,0.22883336]
[1763644126613,0.01501,91853.0,91851.0,0.21774349]
[1763644126804,0.01501,91853.0,91852.0,0.21774158]
[1763644127029,0.01501,91853.0,91852.0,0.21590158]
[1763644127395,0.02774,91857.0,91855.0,0.21773305]
[1763644127791,0.01501,91856.0,91855.0,0.21773305]
[1763644128646,0.03907,91856.0,91855.0,0.21773447]
[1763644129029,0.01501,91856.0,91855.0,0.21773447]
[1763644129426,0.03907,91856.0,91855.0,0.21773447]
[1763644133285,0.01501,91856.0,91855.0,0.21773447]
[1763644133487,0.03907,91856.0,91855.0,0.21773447]
[1763644134292,0.01501,91856.0,91855.0,0.21773447]
[1763644134724,0.00368,91857.0,91856.0,0.2177321]
[1763644136874,0.00368,91857.0,91856.0,0.2182121]
[1763644138134,0.00368,91857.0,91856.0,0.2177321]
[1763644140366,0.01869,91857.0,91853.0,0.01088696]
[1763644140500,0.01869,91857.0,91856.0,0.2177321]
[1763644140924,0.01869,91857.0,91854.0,0.22862147]
[1763644141127,0.01135,91855.0,91854.0,0.22862147]
[1763644141784,0.00368,91857.0,91856.0,0.2177321]
[1763644144127,0.01892,91857.0,91850.0,0.0002]
[1763644144331,0.02721,91851.0,91850.0,0.0002]
[1763644144452,0.05042,91851.0,91850.0,0.0002]
[1763644146504,0.01197,91851.0,91850.0,0.21794632]
[1763644147174,0.00368,91857.0,91854.0,0.22862265]
[1763644147395,0.00368,91857.0,91855.0,0.21773447]
[1763644147396,0.02040231,91856.0,91855.0,0.21773447]
[1763644147771,0.03564231,91856.0,91853.0,0.01088696]
[1763644147974,0.01524,91854.0,91850.0,0.0002]
[1763644148175,0.01197,91851.0,91850.0,0.0002]
[1763644148477,0.01197,91851.0,91850.0,0.21794632]
[1763644149258,0.00368,91857.0,91856.0,0.2177321]
[1763644149467,0.06253928,91857.0,91856.0,0.04564715]
[1763644149882,0.06253928,91857.0,91855.0,0.21773439]
[1763644150077,0.02040928,91856.0,91855.0,0.21773439]
[1763644150328,0.03564928,91856.0,91855.0,0.21773439]
[1763644150475,0.03564928,91856.0,91855.0,0.21773447]
[1763644150476,0.02040928,91856.0,91855.0,0.21773447]
[1763644151065,0.00042071,91864.0,91862.0,0.21771764]
[1763644151269,0.02409218,91863.0,91862.0,0.21771764]
[1763644151489,0.00368,91863.0,91862.0,0.21771764]
[1763644151694,0.00042071,91864.0,91863.0,0.21771551]
[1763644152028,0.00410071,91864.0,91863.0,0.21771551]
[1763644154438,0.00610071,91864.0,91863.0,0.21771551]
[1763644155039,0.00410071,91864.0,91863.0,0.21771551]
[1763644155261,0.00410071,91864.0,91863.0,0.21819551]
[1763644156445,0.00410071,91864.0,91863.0,0.21771551]
[1763644157454,0.01934071,91864.0,91861.0,0.2286041]
[1763644157657,0.01934071,91864.0,91862.0,0.21771678]
[1763644157999,0.00410071,91864.0,91862.0,0.21771678]
[1763644160279,0.00410071,91864.0,91863.0,0.21771551]
[1763644160685,0.01934071,91864.0,91862.0,0.21771678]
[1763644160914,0.01934071,91864.0,91858.0,0.01088636]
[1763644161132,0.01934071,91864.0,91861.0,0.21772]
[1763644161318,0.01524,91859.0,91856.0,0.0108866]
[1763644161473,0.01524,91859.0,91854.0,1.09555785]
[1763644161677,0.02721,91855.0,91854.0,1.08467101]
[1763644162106,0.02721,91855.0,91854.0,1.30240785]
[1763644162298,0.01197,91855.0,91854.0,1.30240785]
[1763644162507,0.00410071,91864.0,91862.0,0.21771788]
[1763644162708,0.00410071,91864.0,91863.0,0.23931199]
[1763644162954,0.00410071,91864.0,91863.0,0.21771551]
[1763644165912,0.00042071,91864.0,91863.0,0.21819551]
[1763644166115,0.00042071,91864.0,91863.0,0.21867551]
[1763644166325,0.00042071,91864.0,91863.0,0.3091257]
[1763644166936,0.00042071,91864.0,91863.0,0.21819551]
[1763644167155,0.00042071,91864.0,91863.0,0.21867551]
[1763644167903,0.00042071,91864.0,91863.0,0.21967551]
[1763644168531,0.00042071,91864.0,91863.0,0.54267551]
[1763644171694,0.00042071,91864.0,91863.0,0.55397551]
[1763644173645,0.00042071,91864.0,91863.0,0.55349551]
[1763644173848,0.00042071,91864.0,91863.0,0.54267551]
[1763644174194,6.311e-05,91864.0,91863.0,0.54267551]
[1763644174420,0.01247,91880.0,91879.0,0.21767759]
[1763644174421,0.01234648,91880.0,91879.0,0.21767759]
[1763644174661,0.01234648,91880.0,91879.0,6.879e-05]
[1763644174862,0.01234648,91880.0,91879.0,0.21774638]
[1763644176205,0.00368,91887.0,91881.0,0.01088364]
[1763644176404,0.00368,91887.0,91884.0,0.22854682]
[1763644176758,0.02711,91887.0,91885.0,0.21766322]
[1763644177483,0.01607,91886.0,91885.0,0.21766322]
[1763644178559,0.0395,91886.0,91881.0,0.01088364]
[1763644178934,0.01607,91882.0,91874.0,1.09555548]
[1763644179252,0.02854,91880.0,91877.0,0.22856611]
[1763644179652,0.05197,91880.0,91877.0,0.01088411]
[1763644179859,0.05197,91880.0,91876.0,0.01088423]
[1763644180068,0.05197,91880.0,91879.0,0.21774638]
[1763644180481,0.05197,91880.0,91879.0,6.879e-05]
[1763644182016,0.00368,91887.0,91886.0,0.21766101]
[1763644182216,0.00368,91887.0,91879.0,0.10984373]
[1763644182466,0.00368,91887.0,91880.0,0.03265128]
[1763644182661,0.00368,91887.0,91880.0,0.22855875]
[1763644182995,0.02711,91887.0,91879.0,0.01095266]
[1763644183155,0.02854,91880.0,91879.0,6.879e-05]
[1763644183524,0.05197,91880.0,91879.0,6.879e-05]
[1763644188369,0.34213225,91880.0,91879.0,6.879e-05]
[1763644188583,0.66513225,91880.0,91879.0,6.879e-05]
[1763644189439,0.69880198,91880.0,91879.0,6.879e-05]
[1763644189653,0.69980198,91880.0,91879.0,6.879e-05]
[1763644189868,0.70080198,91880.0,91879.0,6.879e-05]
[1763644190295,0.69880198,91880.0,91879.0,6.879e-05]
[1763644190441,0.70080198,91880.0,91879.0,6.879e-05]
[1763644191374,0.01088636,91858.0,91851.0,1.08467101]
[1763644191574,0.01088624,91859.0,91851.0,1.08467101]
[1763644191575,0.02854,91852.0,91851.0,1.08509172]
[1763644191996,0.05197,91852.0,91851.0,1.08509172]
[1763644192457,0.05197,91852.0,91851.0,1.30283567]
[1763644193107,0.05197,91852.0,91851.0,1.08509172]
[1763644195906,0.02854,91852.0,91851.0,0.21816466]
[1763644196469,0.02854,91852.0,91851.0,0.00042071]
[1763644196670,0.05197,91852.0,91851.0,0.00042071]
[1763644198769,0.05297,91852.0,91851.0,0.00042071]
[1763644199205,0.05397,91852.0,91851.0,0.00042071]
[1763644199413,0.05397,91852.0,91843.0,0.22865047]
[1763644199414,0.02854,91844.0,91843.0,0.22427118]
[1763644199620,0.03222,91844.0,91843.0,0.22427118]
[1763644199801,0.05565,91844.0,91843.0,0.22427118]
[1763644200208,0.05565,91844.0,91821.0,0.02854]
[1763644200408,0.05565,91844.0,91820.0,1.08487101]
[1763644200409,0.02854,91831.0,91830.0,0.21803586]
[1763644200768,0.02854,91831.0,91830.0,0.00024212]
[1763644201106,0.02854,91831.0,91830.0,0.21803586]
[1763644201303,0.05197,91831.0,91830.0,0.00024212]
[1763644202561,0.05197,91831.0,91830.0,0.21903586]
[1763644202778,0.05197,91831.0,91830.0,0.00024212]
[1763644203558,0.03271396,91853.0,91852.0,0.21774158]
[1763644203756,0.01512,91866.0,91865.0,0.21771077]
[1763644203935,0.01512,91866.0,91862.0,0.01088589]
[1763644204142,0.01512,91866.0,91852.0,1.08467101]
[1763644204143,0.0164,91863.0,91852.0,1.08467101]
[1763644204338,0.01512,91866.0,91852.0,1.30241141]
[1763644204339,0.02784,91853.0,91852.0,1.30241141]
[1763644204562,0.01144,91853.0,91852.0,1.30241141]
[1763644204761,0.01144,91862.0,91861.0,0.21772025]